bitfinex/quotes_ETHUSD_20230118
["timestamp","ask_amount","ask_price","bid_price","bid_amount"]
[1674065837072,0.15315502,1548.0,1547.9,7.58436]
[1674065837283,0.15315502,1548.0,1547.9,10.65036]
[1674065837644,0.15315502,1548.0,1547.9,18.61072]
[1674065838013,0.15315502,1548.0,1547.9,12.15036]
[1674065838228,0.15315502,1548.0,1547.9,9.75636]
[1674065838544,1.04715502,1548.0,1547.9,0.066]
[1674065838759,1.81399175,1548.0,1547.6,6.52732]
[1674065838948,3.30899175,1548.0,1547.6,0.066]
[1674065839116,14.73390175,1548.0,1547.5,0.002]
[1674065839326,0.33089917,1547.9,1547.5,0.002]
[1674065839586,1.494,1547.7,1547.5,0.002]
[1674065839790,0.0338244,1547.8,1547.5,0.002]
[1674065839963,0.0058244,1547.8,1547.5,7.210442]
[1674065840174,0.91999175,1548.0,1547.5,13.738472]
[1674065840433,0.15315502,1548.0,1547.6,1.3738472]
[1674065840603,0.15315502,1548.0,1547.7,12.92222]
[1674065840802,0.15315502,1548.0,1547.7,12.98822]
[1674065841015,0.15315502,1548.0,1547.8,0.23]
[1674065841215,0.15315502,1548.0,1547.8,9.6905]
[1674065841425,0.15315502,1548.0,1547.8,3.066]
[1674065841687,0.15315502,1548.0,1547.6,0.066]
[1674065841688,13.75066475,1548.0,1547.6,0.066]
[1674065841900,1.494,1547.8,1547.6,0.05]
[1674065842240,7.9607544,1547.8,1547.5,0.002]
[1674065842433,8.1381544,1547.8,1547.5,0.002]
[1674065842748,0.1832244,1547.8,1547.5,0.002]
[1674065843061,0.0058244,1547.8,1547.5,6.46397]
[1674065843267,0.0058244,1547.8,1547.5,6.52997]
[1674065843799,0.0058244,1547.8,1547.5,6.53003]
[1674065844115,0.0058244,1547.8,1547.6,0.23]
[1674065844416,0.65246484,1547.8,1547.6,0.23]
[1674065844633,0.65246484,1547.8,1547.5,3.232]
[1674065845331,0.65246484,1547.8,1547.5,3.002]
[1674065845560,20.03512484,1547.8,1547.5,3.002]
[1674065845772,2.00351248,1547.7,1547.5,0.002]
[1674065846112,8.46495248,1547.7,1547.5,0.002]
[1674065846425,8.49295248,1547.7,1547.5,0.002]
[1674065846941,9.98595248,1547.7,1547.5,0.002]
[1674065848153,0.028,1547.7,1547.5,6.46391]
[1674065848517,6.48858,1547.9,1547.6,3.0]
[1674065848688,1.0,1547.7,1547.6,3.0]
[1674065848888,1.0,1547.7,1547.6,3.23]
[1674065849763,1.0,1547.7,1547.5,3.068]
[1674065849975,1.0,1547.7,1547.5,3.002]
[1674065850184,1.0,1547.7,1547.6,3.0]
[1674065850185,1.1,1547.7,1547.6,3.0]
[1674065850375,0.1,1547.7,1547.5,0.068]
[1674065850601,6.56133,1547.7,1547.5,0.002]
[1674065850776,0.656133,1547.6,1547.5,0.002]
[1674065850992,7.1235674,1547.6,1547.5,0.002]
[1674065851234,13.6131774,1547.6,1547.5,0.002]
[1674065851850,7.1515674,1547.6,1547.5,0.002]
[1674065852895,21.5677874,1547.6,1547.5,0.002]
[1674065853100,23.0547874,1547.6,1546.9,3.504]
[1674065853311,1.5,1547.4,1546.9,0.004]
[1674065853526,19.3911,1547.1,1546.9,0.004]
[1674065853753,19.4191,1547.1,1546.9,0.004]
[1674065853962,16.35615,1547.0,1546.9,0.004]
[1674065854173,16.38415,1547.0,1546.9,0.004]
[1674065857603,16.38415,1547.0,1546.9,0.0095987]
[1674065858074,17.88415,1547.0,1546.9,0.0095987]
[1674065858660,16.39815,1547.0,1546.9,0.0095987]
[1674065859917,22.86227,1547.0,1546.9,0.0095987]
[1674065860127,24.36227,1547.0,1546.9,0.0095987]
[1674065860606,24.36227,1547.0,1546.9,0.0149849]
[1674065860759,27.65401759,1547.0,1546.9,0.0149849]
[1674065861780,24.36227,1547.0,1546.9,0.0149849]
[1674065863028,22.86227,1547.0,1546.9,0.0149849]
[1674065863229,23.86227,1547.0,1546.9,0.0149849]
[1674065863459,7.49212,1547.0,1546.9,0.9709849]
[1674065863776,1.028,1547.0,1546.9,0.9709849]
[1674065864099,13.95487,1547.2,1547.0,0.028]
[1674065864455,7.4914,1547.2,1547.0,0.028]
[1674065864661,1.028,1547.2,1547.0,7.02638849]
[1674065864966,1.0,1547.2,1547.1,3.0]
[1674065865093,1.0,1547.2,1547.1,9.6937]
[1674065865304,1.0,1547.2,1547.1,3.296]
[1674065865533,1.0,1547.2,1547.1,3.23]
[1674065865988,1.0,1547.2,1547.1,3.0]
[1674065866138,1.0,1547.2,1547.0,0.094]
[1674065866139,1.0,1547.2,1547.0,3.094]
[1674065866347,1.0,1547.2,1547.0,3.98534849]
[1674065867879,1.0,1547.2,1547.0,3.97634849]
[1674065868240,1.0,1547.2,1547.0,3.019]
[1674065868513,1.0,1547.2,1547.0,9.4781]
[1674065868662,1.0,1547.2,1547.0,9.5441]
[1674065869347,6.49052,1547.4,1547.0,9.5441]
[1674065869542,6.49052,1547.4,1547.0,3.08]
[1674065869747,12.9532,1547.4,1547.0,3.014]
[1674065869966,15.02782344,1547.4,1547.0,3.014]
[1674065870574,16.36182344,1547.4,1547.0,3.014]
[1674065871498,16.36182344,1547.4,1547.0,15.94215]
[1674065871499,0.028,1547.4,1547.0,15.94215]
[1674065871715,0.028,1547.5,1547.1,0.23]
[1674065871921,30.2978,1547.6,1547.1,0.23]
[1674065872127,30.2978,1547.6,1547.2,12.92631]
[1674065872390,0.028,1547.6,1547.3,0.23]
[1674065872586,14.28082,1547.7,1547.3,3.23]
[1674065873655,0.028,1547.7,1547.3,22.61856]
[1674065873807,36.75854,1547.9,1547.3,22.68456]
[1674065874286,1.0,1547.4,1547.3,22.68456]
[1674065874444,0.3266106,1547.4,1547.3,22.68456]
[1674065874981,0.3266106,1547.4,1547.3,16.22169]
[1674065875217,0.3266106,1547.4,1547.3,9.75882]
[1674065875544,9.01726,1547.7,1547.3,9.75882]
[1674065875918,23.26372,1547.7,1547.3,3.066]
[1674065876141,1.324,1547.6,1547.2,0.066]
[1674065876376,6.46211,1547.5,1547.1,6.52952]
[1674065876714,6.49011,1547.5,1547.1,6.52952]
[1674065876861,6.49011,1547.5,1547.1,0.066]
[1674065876862,19.41425,1547.5,1547.1,0.066]
[1674065877076,0.0058244,1547.4,1547.0,0.08]
[1674065877339,6.46295,1547.3,1547.0,0.014]
[1674065877645,12.9539,1547.3,1547.0,3.014]
[1674065877863,20.73985,1547.3,1547.0,0.014]
[1674065878012,1.3012144,1547.2,1547.0,0.014]
[1674065878222,7.7647844,1547.2,1547.0,0.014]
[1674065878498,0.028,1547.2,1547.0,0.014]
[1674065878660,6.49095,1547.3,1547.0,0.014]
[1674065878868,12.95406,1547.3,1547.0,0.014]
[1674065879081,0.028,1547.3,1547.0,0.014]
[1674065879292,6.46295,1547.3,1547.0,0.014]
[1674065879553,13.79491994,1547.3,1547.0,0.014]
[1674065879713,15.12391994,1547.3,1547.0,0.014]
[1674065879924,21.58702994,1547.3,1547.0,0.018]
[1674065882809,20.7131,1547.1,1547.0,0.018]
[1674065882964,23.458763,1547.1,1547.0,0.018]
[1674065884029,24.791763,1547.1,1547.0,0.018]
[1674065884992,28.08351059,1547.1,1547.0,0.018]
[1674065885210,2.80835106,1547.0,1546.6,0.05859061]
[1674065885416,1.32,1546.7,1546.6,0.05859061]
[1674065885624,0.028,1546.9,1546.6,1.01459061]
[1674065885879,9.30072106,1547.0,1546.7,1.19773548]
[1674065886826,15.76509106,1547.0,1546.7,1.19773548]
[1674065887125,9.30072106,1547.0,1546.7,1.19773548]
[1674065889384,0.028,1547.0,1546.7,1.19773548]
[1674065889656,6.4975244,1547.1,1546.7,14.12843548]
[1674065889814,6.4975244,1547.1,1546.7,7.72906548]
[1674065890039,6.4975244,1547.1,1546.8,0.77290655]
[1674065890249,6.4975244,1547.1,1546.7,1.26373548]
[1674065890250,12.9614344,1547.1,1546.7,1.26373548]
[1674065890474,12.9614344,1547.1,1546.7,1.19773548]
[1674065891942,7.46412,1547.0,1546.7,1.19773548]
[1674065892154,7.49212,1547.0,1546.7,1.19773548]
[1674065892407,12.95624,1547.0,1546.7,1.19773548]
[1674065892617,7.760394,1546.9,1546.7,1.19773548]
[1674065892786,7.788394,1546.9,1546.7,1.19773548]
[1674065893432,14.253164,1546.9,1546.7,1.19773548]
[1674065893785,14.253164,1546.9,1546.8,7.58895]
[1674065893786,0.028,1546.9,1546.8,7.58895]
[1674065894000,12.95486,1547.2,1546.8,7.65495]
[1674065894186,6.49138,1547.2,1546.9,3.0]
[1674065894404,10.77669799,1547.2,1546.9,3.0]
[1674065895015,6.49138,1547.2,1546.9,3.0]
[1674065895199,6.49138,1547.2,1547.0,0.23]
[1674065895200,0.028,1547.2,1547.0,0.23]
[1674065895577,21.2891,1547.3,1547.0,0.23]
[1674065895739,9.26607,1547.3,1547.0,0.23]
[1674065895955,12.95376,1547.3,1547.0,0.23]
[1674065896169,12.95376,1547.3,1546.9,3.0]
[1674065896567,19.41664,1547.3,1546.9,3.0]
[1674065896808,20.74564,1547.3,1546.9,3.0]
[1674065897020,8.537934,1547.2,1546.9,3.0]
[1674065897230,8.565934,1547.2,1546.9,3.0]
[1674065897622,8.5717584,1547.2,1546.8,6.53072]
[1674065897860,15.0351284,1547.2,1546.9,0.23]
[1674065898077,0.85717584,1547.1,1546.9,0.23]
[1674065898285,0.85717584,1547.1,1546.8,0.23]
[1674065898513,1.0,1546.9,1546.8,0.23]
[1674065899454,7.34890584,1547.1,1546.8,0.23]
[1674065900678,15.14563584,1547.1,1546.8,0.23]
[1674065900883,14.44310358,1547.0,1546.7,4.19773548]
[1674065901231,14.47110358,1547.0,1546.7,4.19773548]
[1674065901442,8.00669358,1547.0,1546.7,4.19773548]
[1674065901657,6.49213,1547.0,1546.7,4.19773548]
[1674065902256,6.49213,1547.0,1546.7,4.20899393]
[1674065902801,0.028,1547.0,1546.7,4.20899393]
[1674065903011,12.95565,1547.1,1546.7,4.20899393]
[1674065903216,15.129852,1547.1,1546.7,4.20899393]
[1674065903787,0.028,1547.1,1546.8,0.23]
[1674065904095,6.46372,1547.1,1546.8,0.23]
[1674065904311,6.49172,1547.1,1546.8,0.23]
[1674065905428,12.95544,1547.1,1546.8,0.23]
[1674065905652,15.543686,1547.1,1546.8,0.23]
[1674065905963,1.0,1547.0,1546.8,0.23]
[1674065906136,15.543686,1547.1,1546.8,0.23]
[1674065906347,2.616246,1547.1,1546.8,0.23]
[1674065906608,12.95505,1547.2,1546.8,0.23]
[1674065907506,6.49137,1547.2,1546.8,13.15962]
[1674065907723,0.028,1547.2,1546.9,3.0]
[1674065908086,13.9601444,1547.3,1547.0,0.23]
[1674065908295,7.4969844,1547.3,1547.0,0.23]
[1674065909116,6.4969844,1547.3,1547.0,0.23]
[1674065910407,0.028,1547.3,1547.0,0.22723991]
[1674065910713,37.17436,1547.5,1547.0,20.79652962]
[1674065910904,30.7123,1547.5,1547.1,3.0]
[1674065911123,0.028,1547.5,1547.2,6.7632]
[1674065911293,0.002,1547.5,1547.3,3.0]
[1674065911504,6.48779,1547.6,1547.3,3.0]
[1674065911505,6.48979,1547.6,1547.3,3.0]
[1674065911855,0.028,1547.6,1547.3,16.94414835]
[1674065912063,30.5167,1547.7,1547.3,17.01014835]
[1674065912451,30.5167,1547.7,1547.4,0.23]
[1674065913184,20.7023,1547.7,1547.4,0.23]
[1674065913650,0.028,1547.7,1547.4,7.86934971]
[1674065913862,7.49555338,1547.8,1547.4,7.93534971]
[1674065914037,6.48904,1547.8,1547.4,7.93534971]
[1674065915180,7.49555338,1547.8,1547.4,7.93534971]
[1674065915446,1.03451338,1547.8,1547.4,14.39779971]
[1674065915652,1.03451338,1547.9,1547.5,3.79353497]
[1674065915872,1.03451338,1547.9,1547.6,13.15306]
[1674065915873,1.00651338,1547.9,1547.6,13.15306]
[1674065916184,1.1596684,1548.0,1547.7,3.0]
[1674065916350,1.1596684,1548.0,1547.8,0.23]
[1674065916797,2.88640071,1548.0,1547.8,0.23]
[1674065917343,9.34642071,1548.0,1547.8,0.23]
[1674065917562,1.01233778,1547.9,1547.7,3.0]
[1674065917703,1.01233778,1547.9,1547.4,9.2264]
[1674065917704,6.46078,1547.8,1547.5,3.066]
[1674065918053,0.028,1547.8,1547.6,3.23]
[1674065918267,0.0058244,1547.9,1547.6,16.15277]
[1674065918597,1.1596684,1548.0,1547.6,16.21877]
[1674065918810,0.15315502,1548.0,1547.6,17.76133806]
[1674065919391,0.15315502,1548.0,1547.6,24.22294806]
[1674065920774,0.15315502,1548.0,1547.6,17.76133806]
[1674065922400,0.15315502,1548.0,1547.6,24.22294806]
[1674065922557,0.15315502,1548.0,1547.6,17.76133806]
[1674065922763,14.50051553,1548.0,1547.6,3.296]
[1674065923023,0.0058244,1547.9,1547.6,3.23]
[1674065923234,6.4662144,1547.9,1547.6,3.23]
[1674065923452,6.4942144,1547.9,1547.6,3.23]
[1674065923634,8.69433873,1547.9,1547.6,3.23]
[1674065924579,0.0338244,1547.9,1547.6,3.23]
[1674065924923,0.0058244,1547.9,1547.6,9.69156]
[1674065925073,0.0058244,1547.9,1547.6,9.75756]
[1674065925308,0.18115502,1548.0,1547.6,22.68078]
[1674065925682,0.15315502,1548.0,1547.6,22.68078]
[1674065926254,1.0,1547.9,1547.6,3.066]
[1674065926466,13.92106,1547.9,1547.5,3.066]
[1674065926731,13.92106,1547.9,1547.5,3.0]
[1674065926732,12.94906,1547.9,1547.5,3.0]
[1674065927042,15.1385755,1547.9,1547.5,3.0]
[1674065927199,21.5992455,1547.9,1547.5,3.0]
[1674065927408,21.5992455,1547.9,1547.4,3.066]
[1674065927679,8.62087455,1547.8,1547.5,0.23]
[1674065927848,8.64887455,1547.8,1547.5,0.23]
[1674065929150,15.10982455,1547.8,1547.5,0.23]
[1674065929323,21.57077455,1547.8,1547.5,0.23]
[1674065929530,6.46161,1547.6,1547.3,0.072134]
[1674065929726,12.95122,1547.6,1547.3,0.006134]
[1674065930826,6.48961,1547.6,1547.3,0.006134]
[1674065931369,19.41283,1547.6,1547.3,0.006134]
[1674065931579,14.865643,1547.5,1547.3,0.236134]
[1674065931782,14.893643,1547.5,1547.3,0.236134]
[1674065931935,14.893643,1547.5,1547.3,0.186134]
[1674065934405,1.969283,1547.5,1547.3,0.186134]
[1674065934619,13.9572644,1547.6,1547.3,0.186134]
[1674065934943,1.0,1547.5,1547.3,0.186134]
[1674065935454,13.9573244,1547.6,1547.3,0.186134]
[1674065936699,12.9573644,1547.6,1547.3,0.186134]
[1674065936876,7.75789644,1547.5,1547.3,0.186134]
[1674065937084,7.78589644,1547.5,1547.3,0.186134]
[1674065940634,14.24805644,1547.5,1547.2,3.0]
[1674065940806,14.24805644,1547.5,1547.3,0.23]
[1674065941022,14.24805644,1547.5,1547.2,0.23]
[1674065942431,14.24805644,1547.5,1547.2,13.15633]
[1674065942432,0.028,1547.5,1547.2,13.15633]
[1674065942743,0.0058244,1547.6,1547.2,13.22233]
[1674065943479,0.0058244,1547.6,1547.2,19.68561]
[1674065943903,12.9290844,1547.6,1547.2,0.296]
[1674065944172,21.72091322,1547.6,1547.1,3.066]
[1674065944343,21.72091322,1547.6,1546.8,18.47627]
[1674065944344,1.329,1547.4,1547.0,0.066]
[1674065944505,19.3888,1547.3,1546.8,6.53057]
[1674065944714,1.93888,1547.2,1546.8,6.53057]
[1674065944913,1.349,1547.3,1546.8,6.53057]
[1674065945283,28.82544,1547.4,1546.8,19.46047]
[1674065946072,35.28812,1547.4,1546.8,19.46047]
[1674065946346,35.28812,1547.4,1546.9,3.23]
[1674065946517,35.28812,1547.4,1546.9,9.69441]
[1674065946860,35.28812,1547.4,1546.9,9.76041]
[1674065946861,35.27912,1547.4,1546.9,9.76041]
[1674065947069,40.67472047,1547.4,1546.9,9.76041]
[1674065947446,35.27912,1547.4,1546.9,9.76041]
[1674065947766,35.27912,1547.4,1547.0,1.334]
[1674065947767,0.028,1547.4,1547.0,1.334]
[1674065947960,9.036,1547.5,1547.1,0.23]
[1674065947961,9.064,1547.5,1547.1,0.23]
[1674065948174,9.064,1547.5,1547.2,6.46321]
[1674065948543,0.028,1547.5,1547.3,0.23]
[1674065948751,41.0093,1547.6,1547.3,0.23]
[1674065949067,6.46211,1547.5,1547.3,0.23]
[1674065949379,10.59104,1547.5,1547.3,0.23]
[1674065949537,6.49011,1547.5,1547.3,0.23]
[1674065949751,0.028,1547.5,1547.3,0.23]
[1674065950015,34.54727,1547.6,1547.3,0.23]
[1674065952731,41.00913,1547.6,1547.3,0.23]
[1674065952960,45.47852128,1547.6,1547.3,0.23]
[1674065953188,47.81503466,1547.6,1547.3,0.23]
[1674065953689,47.81503466,1547.6,1547.1,3.01125554]
[1674065953866,12.9259,1547.3,1547.0,0.066]
[1674065954079,1.29259,1547.2,1546.8,6.53066]
[1674065954335,6.46341,1547.2,1546.8,6.53066]
[1674065954507,6.49141,1547.2,1546.8,6.53066]
[1674065955293,6.49141,1547.2,1546.9,3.23]
[1674065955814,12.95482,1547.2,1546.9,3.23]
[1674065955983,19.41823,1547.2,1546.8,3.066]
[1674065956189,19.41823,1547.2,1546.8,3.0]
[1674065956190,14.06947771,1547.1,1546.8,3.0]
[1674065956406,14.09747771,1547.1,1546.8,3.0]
[1674065956628,14.09747771,1547.1,1546.7,3.066]
[1674065956844,0.89688404,1546.7,1546.6,0.12459061]
[1674065957023,0.89688404,1546.7,1546.6,1.18141305]
[1674065957229,0.89688404,1546.7,1546.6,0.05859061]
[1674065958973,0.00288404,1546.7,1546.6,0.92659061]
[1674065959118,0.00288404,1546.7,1546.6,17.52339132]
[1674065959469,0.00288404,1546.7,1546.6,18.71217156]
[1674065959660,0.00288404,1546.7,1546.6,12.47638156]
[1674065960011,37.82843404,1547.0,1546.6,12.47638156]
[1674065960166,37.82843404,1547.0,1546.7,0.23]
[1674065960382,44.29276404,1547.0,1546.7,0.23]
[1674065960641,49.51781188,1547.0,1546.7,0.23]
[1674065960885,49.51781188,1547.0,1546.6,3.05859061]
[1674065961166,55.98214188,1547.0,1546.6,3.05859061]
[1674065961901,57.47514188,1547.0,1546.6,3.05859061]
[1674065963588,3.29174759,1546.9,1546.6,0.05859061]
[1674065963742,27.35948,1546.7,1546.6,0.05859061]
[1674065963949,27.38748,1546.7,1546.6,0.05859061]
[1674065964748,28.87948,1546.7,1546.6,0.05859061]
[1674065965227,2.887948,1546.6,1546.3,0.06205394]
[1674065965446,2.995,1546.4,1546.3,0.06205394]
[1674065965633,22.39489,1546.4,1546.3,0.06205394]
[1674065965837,22.42289,1546.4,1546.3,0.06205394]
[1674065966052,27.50632,1546.4,1546.3,0.06205394]
[1674065967009,27.5121444,1546.4,1546.3,0.06205394]
[1674065967480,30.80389199,1546.4,1546.3,0.06205394]
[1674065971887,30.80389199,1546.4,1546.2,0.06205394]
[1674065972204,22.39115,1546.3,1546.2,0.06205394]
[1674065972371,26.1458282,1546.3,1546.2,0.06205394]
[1674065972938,35.2136282,1546.3,1546.2,0.06205394]
[1674065973090,33.7136282,1546.3,1546.2,0.06205394]
[1674065973973,34.7136282,1546.3,1546.2,0.06205394]
[1674065974778,33.7136282,1546.3,1546.2,0.06205394]
[1674065975201,35.2056282,1546.3,1546.2,0.06205394]
[1674065975660,38.49737579,1546.3,1546.2,0.06205394]
[1674065976048,38.49737579,1546.3,1546.1,0.05859061]
[1674065976260,26.23411758,1546.2,1546.1,0.05859061]
[1674065976506,26.26211758,1546.2,1546.1,0.05859061]
[1674065976844,31.6776069,1546.2,1545.9,0.06428298]
[1674065977013,29.49440759,1546.1,1545.8,0.06182651]
[1674065977224,30.37488,1545.9,1545.5,0.07184104]
[1674065977451,2.995,1545.6,1545.5,0.07184104]
[1674065977665,21.20625186,1545.6,1545.5,0.07184104]
[1674065977989,24.00463305,1545.6,1545.5,0.07184104]
[1674065979879,24.01045745,1545.6,1545.5,0.07184104]
[1674065980562,24.01045745,1545.6,1545.5,1.04e-06]
[1674065980781,27.30220504,1545.6,1545.5,1.04e-06]
[1674065981409,24.01045745,1545.6,1545.5,1.04e-06]
[1674065981924,23.71611559,1545.6,1545.5,1.04e-06]
[1674065988695,23.71029119,1545.6,1545.5,1.04e-06]
[1674065989725,0.028,1545.6,1545.5,1.04e-06]
[1674065989927,6.46997,1545.6,1545.5,1.04e-06]
[1674065990138,6.49797,1545.6,1545.5,1.04e-06]
[1674065991972,12.96794,1545.6,1545.5,1.04e-06]
[1674065992862,6.49797,1545.6,1545.5,1.04e-06]
[1674065994139,6.46918,1545.8,1545.6,1.76970374]
[1674065994392,13.00452,1545.8,1545.6,1.76970374]
[1674065994561,6.53518,1545.8,1545.6,1.76970374]
[1674065994782,13.00436,1545.8,1545.6,1.76970374]
[1674065996978,12.33025623,1545.8,1545.6,1.94667422]
[1674065997334,5.86107623,1545.8,1545.6,1.94667422]
[1674065997699,4.66268548,1545.8,1545.6,1.94667422]
[1674065997909,6.46893,1545.9,1545.6,1.94667422]
[1674065997910,0.066,1545.9,1545.6,1.94667422]
[1674065998226,34.34458,1546.0,1545.7,0.19466742]
[1674065998227,0.066,1546.0,1545.7,0.19466742]
[1674065998460,19.47054,1546.1,1545.7,0.19466742]
[1674065998664,13.00228,1546.1,1545.7,6.66417742]
[1674065998893,6.5341,1546.1,1545.8,0.66641774]
[1674066000328,13.00236,1546.1,1545.8,0.66641774]
[1674066000587,13.00236,1546.1,1545.7,0.26066742]
[1674066000588,13.00236,1546.1,1545.7,0.19466742]
[1674066000825,19.47062,1546.1,1545.7,0.19466742]
[1674066001016,19.47062,1546.1,1545.6,5.01267422]
[1674066001224,19.42062,1546.1,1545.6,5.01267422]
[1674066002033,19.42062,1546.1,1545.7,1.12339492]
[1674066002034,6.4841,1546.1,1545.7,1.12339492]
[1674066002364,7.4841,1546.1,1545.7,11.27159211]
[1674066002566,7.4841,1546.1,1545.8,2.25055413]
[1674066002780,7.4841,1546.1,1545.8,1.12715921]
[1674066004044,6.4841,1546.1,1545.8,1.12715921]
[1674066004665,0.27430992,1546.0,1545.8,1.12715921]
[1674066004897,6.74293992,1546.0,1545.7,3.066]
[1674066005113,13.27756992,1546.0,1545.6,4.18945141]
[1674066005320,20.42049391,1546.0,1545.7,1.12347053]
[1674066005497,20.42049391,1546.0,1545.5,0.06600104]
[1674066005498,0.0058244,1545.9,1545.5,0.06600104]
[1674066005723,19.40742,1545.8,1545.5,1.04e-06]
[1674066005943,1.940742,1545.7,1545.5,1.04e-06]
[1674066006152,19.40991,1545.6,1545.5,1.04e-06]
[1674066006506,19.47591,1545.6,1545.5,1.04e-06]
[1674066008913,20.97191,1545.6,1545.5,1.04e-06]
[1674066010662,21.97191,1545.6,1545.5,1.04e-06]
[1674066010874,25.01073564,1545.6,1545.5,1.04e-06]
[1674066012230,24.01073564,1545.6,1545.5,1.04e-06]
[1674066013224,22.51473564,1545.6,1545.5,1.04e-06]
[1674066013938,24.00873564,1545.6,1545.5,1.04e-06]
[1674066014551,28.80248323,1545.6,1545.5,1.04e-06]
[1674066014741,29.43922496,1545.6,1545.5,1.04e-06]
[1674066015902,32.43922496,1545.6,1545.5,1.04e-06]
[1674066018682,29.43922496,1545.6,1545.5,1.04e-06]
[1674066018887,28.80248323,1545.6,1545.5,1.04e-06]
[1674066021497,28.80248323,1545.6,1545.4,0.1195888]
[1674066021498,0.89767797,1545.5,1545.4,0.1195888]
[1674066021714,8.57167388,1545.5,1545.4,0.1195888]
[1674066021912,28.04884388,1545.5,1545.4,0.1195888]
[1674066022541,37.70984388,1545.5,1545.4,0.1195888]
[1674066023270,33.52409629,1545.5,1545.4,0.9875888]
[1674066023619,19.48084797,1545.5,1545.4,0.9875888]
[1674066023988,19.48084797,1545.5,1545.4,0.1195888]
[1674066029923,13.01045797,1545.5,1545.4,0.9875888]
[1674066030114,6.54006797,1545.5,1545.4,0.9875888]
[1674066030455,13.01045797,1545.5,1545.4,0.1195888]
[1674066030824,13.01045797,1545.5,1545.4,0.9875888]
[1674066031033,6.54006797,1545.5,1545.4,0.9875888]
[1674066032086,6.54006797,1545.5,1545.4,0.1195888]
[1674066032404,13.01045797,1545.5,1545.4,0.1195888]
[1674066033065,13.01045797,1545.5,1545.4,0.9875888]
[1674066033066,0.06967797,1545.5,1545.4,0.9875888]
[1674066033299,0.00367797,1545.5,1545.4,1.09299374]
[1674066034254,0.00367797,1545.5,1545.4,2.59499374]
[1674066034724,1.30367797,1545.5,1545.4,9.06580374]
[1674066034939,1.30367797,1545.5,1545.4,9.13180374]
[1674066035173,1.30367797,1545.5,1545.4,15.60261374]
[1674066035383,1.30367797,1545.5,1545.4,9.13180374]
[1674066035970,1.30367797,1545.5,1545.4,25.30342374]
[1674066036815,0.18051723,1545.5,1545.4,25.30342374]
[1674066037064,0.066,1546.0,1545.7,0.18051723]
[1674066037242,21.1662,1546.1,1545.7,14.62111723]
[1674066037447,0.066,1546.1,1545.7,14.68711723]
[1674066037708,0.066,1546.2,1545.9,1.502]
[1674066037877,0.066,1546.3,1545.9,1.6522]
[1674066038088,27.76247425,1546.4,1545.9,14.58939]
[1674066038316,27.76247425,1546.4,1545.9,14.65539]
[1674066038564,31.18537868,1546.4,1545.9,14.65539]
[1674066039581,31.44540981,1546.4,1545.9,14.65539]
[1674066040405,28.02250538,1546.4,1545.9,14.65539]
[1674066040630,21.55550538,1546.4,1546.0,1.494]
[1674066040840,0.45530538,1546.4,1546.0,1.494]
[1674066041022,0.38930538,1546.4,1546.1,6.4678]
[1674066041230,0.38930538,1546.4,1546.1,19.46956]
[1674066041459,0.38930538,1546.4,1546.1,14.50368]
[1674066042235,0.38930538,1546.4,1546.1,8.0358]
[1674066042761,0.38930538,1546.4,1546.1,14.50368]
[1674066043450,0.38930538,1546.4,1546.2,4.502]
[1674066043651,0.38930538,1546.4,1546.3,0.4502]
[1674066045339,0.38930538,1546.4,1546.2,9.53321]
[1674066045758,0.38930538,1546.4,1546.2,3.066]
[1674066045957,0.38930538,1546.4,1546.1,14.50346]
[1674066046168,6.85600538,1546.4,1546.1,0.066]
[1674066046378,0.68560054,1546.3,1545.9,2.568]
[1674066046638,0.38930538,1546.4,1546.1,6.46787]
[1674066046967,0.38930538,1546.4,1546.1,6.53387]
[1674066047110,0.38930538,1546.4,1546.1,7.834048]
[1674066047325,0.38930538,1546.4,1546.1,22.271808]
[1674066048900,0.38930538,1546.4,1546.2,0.23]
[1674066049163,0.38930538,1546.4,1546.3,14.4231]
[1674066049321,0.38930538,1546.4,1546.3,14.4891]
[1674066049526,0.38930538,1546.4,1546.3,15.74615657]
[1674066051105,0.38930538,1546.4,1546.3,25.21320657]
[1674066051540,0.38930538,1546.4,1546.3,25.44320657]
[1674066052085,0.38930538,1546.4,1546.3,26.93520657]
[1674066054257,0.13822202,1546.9,1546.3,47.73420657]
[1674066054467,0.13822202,1546.9,1546.8,3.001]
[1674066054679,0.13822202,1546.9,1546.8,6.231]
[1674066054924,0.13822202,1546.9,1546.8,25.69185]
[1674066055142,0.13822202,1546.9,1546.8,22.69085]
[1674066055360,0.13822202,1546.9,1546.8,24.19285]
[1674066055690,0.13822202,1546.9,1546.8,26.95190657]
[1674066057652,2.202e-05,1546.9,1546.8,26.95190657]
[1674066057861,0.14247032,1547.2,1546.8,33.75090657]
[1674066058125,0.14247032,1547.2,1547.1,1.502]
[1674066058282,0.14247032,1547.2,1547.1,27.5868]
[1674066058492,0.14247032,1547.2,1547.1,33.454978]
[1674066059171,0.066,1547.8,1547.1,40.253978]
[1674066059340,30.13005502,1548.0,1547.3,1.502]
[1674066059552,36.65236131,1548.0,1547.4,0.1502]
[1674066059767,36.65236131,1548.0,1547.5,13.15353]
[1674066059981,36.65236131,1548.0,1547.5,13.21953]
[1674066060488,36.65236131,1548.0,1547.5,0.066]
[1674066060489,57.53420131,1548.0,1547.5,0.066]
[1674066060747,5.75342013,1547.9,1547.4,12.99028]
[1674066060938,12.9275944,1547.8,1547.4,0.066]
[1674066061150,1.502,1547.7,1547.3,6.52853]
[1674066061365,1.0,1547.5,1547.3,6.52853]
[1674066063545,15.78357944,1547.7,1547.3,6.52853]
[1674066064746,15.78357944,1547.7,1547.3,0.066]
[1674066065065,15.78357944,1547.7,1547.2,13.92609]
[1674066065066,12.92422,1547.5,1547.2,0.066]
[1674066065276,12.99022,1547.5,1547.0,12.99375]